Cogmind - Beta 13 @@@ ROGUE MODE // 2024.04.01 @ 13:47:52 Player: darki Result: Smashed by cave-in Performance ------------- Evolutions (7) 3500 Regions Visited (17) 3400 Robots Destroyed (112) 560 Value Destroyed (4690) 4690 Prototype IDs (26) 520 Alien Tech Used (0) 0 Bonus (3557) 3557 TOTAL SCORE: 16227 Bonus ------- High Alert Combat Kills 102 Follower Combat Kills 2579 Met Data Miner 300 Met Imprinter 300 Was Imprinted 300 Met Zhirov 300 Met R17 at Cetus 500 Read Decrypted Archives 300 Friendly Fire -1124 Cogmind --------- Core Integrity 0/1300 Matter 0/300 Energy 100/100 System Corruption 28% Temperature Cool (0) Movement Core (50) Location -3/Research Parts ------- > --- POWER (1) -------- (None) > --- PROPULSION (2) --- (None) > --- UTILITY (15) ----- (None) > --- WEAPON (3) ------- (None) > --- INVENTORY (5) ---- GAL Module Peak State ------------ > --- POWER ------------ Mini Fusion Reactor > --- PROPULSION ------- Advanced Heavy Treads > --- UTILITY ---------- Advanced Power Amplifier Advanced Thermal Generator Improved Heat Sink Advanced Cooling System Huge Storage Unit Zionite Biocell Improved Sensor Array Advanced Signal Interpreter Targeting Computer Advanced Target Analyzer Improved Weapon Cycler Improved Heavy Armor Plating Graphene Brace Improved Remote Force Field > --- WEAPON ----------- Zionite Laser-S Dispersion Rifle Linear Accelerator > --- INVENTORY -------- Advanced Medium Treads High-capacity Matter Pod Scatter Rocket Array Improved Plasma Cutter Makeshift Axe GAL Module [Rating: 125] Favorites ----------- Power Light Angular Momentum Engine Engine Light Angular Momentum Engine Power Core Neutrino Core Reactor Zionite Light DM Reactor Propulsion Improved Aluminum Leg Treads Armored Medium Treads Leg Improved Aluminum Leg Hover Unit Antigrav System Flight Unit Cooled Impulse Thruster Utility Targeting Computer Device Improved Weapon Cycler Storage Large Storage Unit Processor Targeting Computer Hackware Hacking Suite Protection Improved Medium Armor Plating Weapon Heavy Assault Rifle Energy Gun Zionite Laser-S Energy Cannon Neutron Cannon Ballistic Gun Heavy Assault Rifle Ballistic Cannon Heavy Gauss Cannon Launcher Heavy Rocket Launcher Special Weapon Improved Plasma Cutter Slashing Weapon Makeshift Axe Build | -11 -10 -10 -9 -9 -7 -6 -6 -6 -6 -6 -5 -5 -5 -5 -5 -4 -3 ------- Run | Yrd Mat Min Mat Min Zio Pro Fac Low Low Dat Pro Fac Ext Cet Arc Fac Res Slots Evolved 14 | . . . 2 . . . 6 . . . . 2 . . . 2 2 Power . | . . . . . . . . . . . . . . . . . . Propulsion . | . . . . . . . . . . . . . . . . . . Utility 13 | . . . 1 . . . 6 . . . . 2 . . . 2 2 Weapon 1 | . . . 1 . . . . . . . . . . . . . . Parts Attached 155 | . 18 . 13 2 5 . 16 8 . . 12 18 27 1 . 14 21 Power 17 | . 2 . 2 1 . . . . . . 1 4 5 . . . 2 Engine 14 | . 2 . 2 1 . . . . . . 1 4 3 . . . 1 Core 1 | . . . . . . . . . . . . . 1 . . . . Reactor 2 | . . . . . . . . . . . . . 1 . . . 1 Propulsion 25 | . 5 . 3 1 . . 1 1 . . 3 1 5 . . 1 4 Treads 8 | . 1 . . . . . . . . . . . 4 . . 1 2 Leg 13 | . 4 . 3 1 . . 1 1 . . 2 . 1 . . . . Wheel . | . . . . . . . . . . . . . . . . . . Hover 2 | . . . . . . . . . . . 1 1 . . . . . Flight 2 | . . . . . . . . . . . . . . . . . 2 Utility 63 | . 5 . 3 . 1 . 10 1 . . 3 10 12 1 . 8 9 Device 32 | . 2 . . . 1 . 5 1 . . 1 5 6 . . 5 6 Storage 5 | . 2 . 1 . . . . . . . . . 1 . . . 1 Processor 16 | . 1 . 2 . . . 4 . . . 2 4 . . . 2 1 Hackware 1 | . . . . . . . . . . . . . . . . . 1 Protection 9 | . . . . . . . 1 . . . . 1 5 1 . 1 . Artifact . | . . . . . . . . . . . . . . . . . . Weapon 50 | . 6 . 5 . 4 . 5 6 . . 5 3 5 . . 5 6 Energy Gun 10 | . 3 . . . . . . . . . . . 2 . . 3 2 Energy Cannon 3 | . . . 1 . . . . . . . . . 2 . . . . Ballistic Gun 21 | . 3 . 4 . 2 . 4 4 . . 4 . . . . . . Ballistic Cannon 2 | . . . . . . . . . . . . . . . . 1 1 Launcher 4 | . . . . . . . . 2 . . . . 1 . . . 1 Special Weapon 1 | . . . . . . . . . . . . . . . . . 1 Impact Weapon . | . . . . . . . . . . . . . . . . . . Slashing Weapon 9 | . . . . . 2 . 1 . . . 1 3 . . . 1 1 Piercing Weapon . | . . . . . . . . . . . . . . . . . . Special Melee Weapon . | . . . . . . . . . . . . . . . . . . Unidentified Prototypes 16 | . . . 1 . 1 . 3 . . . . 1 6 1 . . 3 Parts Lost 58 | . 6 . . 1 . . 1 2 . . 15 2 3 . 4 3 21 Power 5 | . 1 . . . . . . . . . 2 1 . . . . 1 Propulsion 10 | . 1 . . 1 . . . 1 . . 3 . 1 . . . 3 Utility 26 | . 1 . . . . . 1 . . . 6 . 2 . 3 3 10 Weapon 17 | . 3 . . . . . . 1 . . 4 1 . . 1 . 7 Highest Loss Streak 12 | . 4 . . 1 . . 1 2 . . 10 2 3 . 4 3 12 To Critical Strikes . | . . . . . . . . . . . . . . . . . . Average Slot Usage (%) 89 | . 97 100 98 100 100 100 85 100 100 100 59 63 96 100 91 81 68 Engine 6 | . 14 14 11 11 11 11 6 6 6 6 1 2 3 . . . . Treads 2 | . 1 . . . . . . . . . . . 10 11 11 7 3 Leg 11 | . 26 28 22 22 22 22 13 13 13 13 3 . . . . . . Device 13 | . 4 . . . 3 11 14 22 26 26 16 13 16 23 20 23 29 Storage 7 | . 14 14 11 11 11 11 6 6 6 6 6 1 4 5 5 5 3 Processor 18 | . 8 14 20 22 18 11 21 23 20 20 14 30 25 17 17 20 12 Protection 3 | . . . . . . . 1 6 6 6 1 1 14 16 12 5 2 Energy Gun 2 | . 8 . . . . . . . . . . . 3 5 5 7 6 Energy Cannon 1 | . . . . . . . . . . . . . 10 11 8 1 . Ballistic Gun 15 | . 18 28 33 33 27 33 19 19 20 20 14 2 . . . . . Slashing Weapon 1 | . . . . . 5 . . . . . . 3 . . . 1 . Naked Turns 134 | . . . . . . . . . . . . . . . . . 134 Heaviest Build 161 | 14 39 31 37 38 39 39 48 53 49 49 49 30 57 59 59 71 161 Greatest Support 75 | 20 20 20 26 26 26 26 33 33 33 33 33 11 54 54 54 75 75 Greatest Overweight (x) 9 | . 2 1 1 1 1 1 1 1 1 1 9 2 9 1 1 1 2 Average Overweight (x) 1 | . 1 1 1 1 1 1 1 1 1 1 5 . . . . . . Largest Inventory Capacity 25 | . 15 15 15 15 15 15 15 15 15 15 15 15 5 5 5 5 25 Average Capacity 11 | . 14 15 15 15 15 15 15 15 15 15 15 7 5 5 5 5 8 Most Carried 15 | . 15 15 15 15 15 15 15 11 9 9 9 9 5 5 5 5 6 Average Carried 9 | . 12 14 14 14 14 14 11 10 9 9 7 5 4 5 5 4 4 Final Capacity 15 | 8 15 15 15 15 15 15 15 15 15 15 15 5 5 5 5 5 5 Final Carried 15 | 6 15 15 15 15 15 15 11 9 9 9 9 3 5 5 5 5 1 Class Distribution -------------------- 30% | Mutant 24% | Gunner 14% | Scavenger-Gunner 11% | Messiah-Gunner 6% | Commander-Tank Dominant Class ---------------- Mutant | -10/Materials Mutant | -10/Mines Gunner | -9/Materials Gunner | -9/Mines Mutant | -7/Zion Gunner | -6/Proximity Caves Gunner | -6/Factory Scavenger-Gunner | -6/Lower Caves Scavenger-Gunner | -6/Lower Caves Scavenger-Gunner | -6/Data Miner Mutant | -5/Proximity Caves Mutant | -5/Factory Commander-Tank | -5/Extension Messiah-Tank | -5/Cetus Messiah-Tank | -5/Archives Messiah-Gunner | -4/Factory Messiah-Gunner | -3/Research Resources | -11 -10 -10 -9 -9 -7 -6 -6 -6 -6 -6 -5 -5 -5 -5 -5 -4 -3 ----------- Run | Yrd Mat Min Mat Min Zio Pro Fac Low Low Dat Pro Fac Ext Cet Arc Fac Res Matter Collected 3165 | 200 312 33 739 101 21 56 109 307 60 . 317 90 340 51 6 175 248 Remotely . | . . . . . . . . . . . . . . . . . . Salvage Created 5215 | . 785 . 972 222 . . 151 403 34 . 248 118 890 274 41 263 814 Parts 265 | . 46 . 60 16 . . 11 12 1 . 10 5 38 7 1 19 39 Haulers Intercepted 6 | . 2 . 4 . . . . . . . . . . . . . . Recyclers Shooed 1 | . . . . . . . . . . . . . . . . . 1 Parts Field Recycled . | . . . . . . . . . . . . . . . . . . Retrieved Matter . | . . . . . . . . . . . . . . . . . . Parts Self-Destructed 26 | . . . . . 2 . . 13 . . 11 . . . . . . Prevented 14 | . . . . . . 14 . . . . . . . . . . . Kills | -11 -10 -10 -9 -9 -7 -6 -6 -6 -6 -6 -5 -5 -5 -5 -5 -4 -3 ------- Run | Yrd Mat Min Mat Min Zio Pro Fac Low Low Dat Pro Fac Ext Cet Arc Fac Res Combat Hostiles Destroyed 81 | . 16 . 7 2 . . 3 8 . . 7 . 11 4 . 5 18 Melee 3 | . . . . . . . . . . . . . 3 . . . . Guns 52 | . 16 . 7 2 . . 3 3 . . 7 . 2 1 . 3 8 Cannons 13 | . . . . . . . . . . . . . 6 2 . 2 3 AOE 12 | . . . . . . . . 5 . . . . . . . . 7 Classes Destroyed 14 | . 6 . 3 1 . . 2 . 1 . . . . . . . 1 Worker 4 | . . . 2 . . . . . . . . 1 . . . . 1 Builder 5 | . 1 . 1 . . . . . . . . 1 1 . . . 1 Hauler 6 | . 2 . 4 . . . . . . . . . . . . . . Recycler 5 | . 1 . 3 . . . . . . . . . 1 . . . . Operator 1 | . . . 1 . . . . . . . . . . . . . . Watcher 5 | . 1 . 3 . . . . . . . . . . . . . 1 Swarmer 10 | . 3 . 1 . . . 1 . . . 2 . . . . . 3 Grunt 44 | . 13 . 6 1 . . . 8 . . 2 . 6 . . . 8 Duelist 1 | . . . . 1 . . . . . . . . . . . . . Sentry 9 | . . . 2 . . . . 1 . . 1 . 4 . . 1 . Specialist 1 | . . . . . . . . . . . . . . . . . 1 Hunter 2 | . . . . . . . 1 . . . . . . 1 . . . Programmer 13 | . . . . . . . 1 . . . 2 . . . . 4 6 Cetus Guard 3 | . . . . . . . . . . . . . . 3 . . . Z-Courier 1 | . . . . . . . . . . . . 1 . . . . . Samaritan 1 | . . . . . . . . . 1 . . . . . . . . Thug 2 | . . . . 2 . . . . . . . . . . . . . Butcher 1 | . . . . . . . . . . . . . 1 . . . . Best Kill Streak 9 | . 4 . 6 2 . . 1 3 . . 4 1 5 2 . 2 9 Combat Bots Only 8 | . 4 . 4 2 . . 1 3 . . 4 . 5 2 . 2 8 Max Kills in Single Turn 7 | . 2 . 2 1 . . 1 2 1 . 1 1 1 1 . 1 7 Gunslinging . | . . . . . . . . . . . . . . . . . . Exploded 5 | . . . . . . . . 2 . . . . . . . . 5 Melee 1 | . . . . . . . . . . . . . 1 . . . . Uniques/NPCs Destroyed . | . . . . . . . . . . . . . . . . . . Combat | -11 -10 -10 -9 -9 -7 -6 -6 -6 -6 -6 -5 -5 -5 -5 -5 -4 -3 -------- Run | Yrd Mat Min Mat Min Zio Pro Fac Low Low Dat Pro Fac Ext Cet Arc Fac Res Hostile Shots Fired 634 | . 126 . 21 9 . 12 37 33 . . 74 2 53 2 3 19 243 Missed 176 | . 32 . 7 1 . 3 9 9 . . 23 . 10 1 1 8 72 Damage Taken 10483 | . 1176 . 181 154 . 153 455 420 . . 1059 77 884 61 1197 393 4273 Core 2238 | . 229 . 48 . . 23 116 48 . . 129 25 310 . . . 1310 Absorbed by Shields 815 | . . . . . . . . . . . . . 136 29 . . 650 Reduced by Siege Mode 145 | . . . . . . . . . . . . . . . . . 145 Redirected to Shielding 192 | . . . . . . . . . . . . . 192 . . . . Regen/Repaired (Parts) 113 | . . . . . 113 . . . . . . . . . . . . Core Remaining (%) 70 | 100 . 8 . . . 82 . . . . 65 . . . 66 100 . Volleys Fired 287 | . 56 . 46 8 . 3 9 13 2 . 20 . 31 7 11 25 56 Largest 3 | . 2 . 3 3 . 3 3 3 3 . 3 . 3 3 1 3 3 Hottest 269 | . 105 . 69 69 . 69 74 77 61 . 66 . 269 248 60 209 209 Shots Fired 627 | . 105 . 138 24 . 9 27 33 6 . 53 . 66 19 11 40 96 Gun 503 | . 105 . 138 24 . 9 27 26 6 . 53 . 14 7 11 20 63 Cannon 107 | . . . . . . . . . . . . . 52 12 . 20 23 Launcher 10 | . . . . . . . . 7 . . . . . . . . 3 Special 7 | . . . . . . . . . . . . . . . . . 7 Kinetic 389 | . 66 . 138 24 . 9 27 26 6 . 53 . . . . 17 23 Thermal 225 | . 38 . . . . . . . . . . . 66 19 11 21 70 Explosive 10 | . . . . . . . . 7 . . . . . . . . 3 Electromagnetic 3 | . 1 . . . . . . . . . . . . . . 2 . Robot Hit Streak 36 | . 9 . 8 8 . 8 8 5 8 . 19 . 31 5 6 12 36 Robot Miss Streak 5 | . 3 . 5 1 . 2 2 2 . . 4 . 3 1 1 2 1 Penetration Max . | . . . . . . . . . . . . . . . . . . Secondary Targets 9 | . 2 . 3 1 . . . . . . 3 . . . . . . Max Gunslinging Chain 1 | . 1 . 1 1 . . . . . . 1 . . . . . . Shots Hit Robots 411 | . 66 . 82 16 . 7 18 16 6 . 43 6 52 12 10 12 65 Core Hits 253 | . 30 . 30 8 . 3 7 21 2 . 28 1 27 7 4 7 78 Critical Kills 3 | . . . . . . . . . . . . . 1 . . 1 1 Critical Parts Destroyed 6 | . . . 2 . . . . 1 . . . . . . . . 3 Critical Strikes 19 | . 1 . 2 . . . . 1 . . . 1 3 . . 2 9 Burn 2 | . 1 . . . . . . . . . . . 1 . . . . Meltdown 1 | . . . . . . . . . . . . . 1 . . . . Destroy 8 | . . . 2 . . . . 1 . . . . . . . 1 4 Blast 6 | . . . . . . . . . . . . . . . . 1 5 Sever 2 | . . . . . . . . . . . . 1 1 . . . . Melee Attacks 54 | . . . . . 1 . 1 . . . 1 10 13 . . 1 27 Impact . | . . . . . . . . . . . . . . . . . . Slashing 54 | . . . . . 1 . 1 . . . 1 10 13 . . 1 27 Piercing . | . . . . . . . . . . . . . . . . . . Sneak Attacks 5 | . . . . . . . . . . . . 5 . . . . . Combat Hostiles . | . . . . . . . . . . . . . . . . . . Follow-up Attacks . | . . . . . . . . . . . . . . . . . . Damage Inflicted 12656 | . 960 . 1363 247 . 105 299 1301 115 . 1005 452 2003 451 312 455 3588 Guns 6692 | . 960 . 1363 247 . 105 299 248 115 . 1005 . 295 141 312 225 1377 Cannons 2212 | . . . . . . . . . . . . . 1210 310 . 230 462 Explosions 2783 | . . . . . . . . 1053 . . . . 98 . . . 1632 Melee 940 | . . . . . . . . . . . . 452 400 . . . 88 Ramming 29 | . . . . . . . . . . . . . . . . . 29 Kinetic 4498 | . 569 . 1363 247 . 105 299 248 115 . 1005 . . . . 85 462 Thermal 4384 | . 369 . . . . . . . . . . . 1505 451 312 370 1377 Explosive 2685 | . . . . . . . . 1053 . . . . . . . . 1632 Electromagnetic 120 | . 22 . . . . . . . . . . . 98 . . . . Impact . | . . . . . . . . . . . . . . . . . . Slashing 940 | . . . . . . . . . . . . 452 400 . . . 88 Piercing . | . . . . . . . . . . . . . . . . . . Highest Corruption 28 | . . . . . . . . . . . 4 . 1 1 1 11 28 Average Corruption 4 | . . . . . . . . . . . 3 . 1 1 1 5 8 Corruption Purged . | . . . . . . . . . . . . . . . . . . Corruption Blocked . | . . . . . . . . . . . . . . . . . . Effects 65 | . . . . . . . . . . . 19 . 9 3 . 8 26 Message Errors 17 | . . . . . . . . . . . 5 . 4 . . 1 7 Matter Fused 16 | . . . . . . . . . . . 5 . 1 2 . 2 6 Heat Flow Errors 6 | . . . . . . . . . . . 2 . 1 1 . 1 1 Energy Discharges 6 | . . . . . . . . . . . 1 . 1 . . 1 3 Parts Fused 2 | . . . . . . . . . . . . . 1 . . . 1 Data Loss (minor) 9 | . . . . . . . . . . . 3 . 1 . . 2 3 Data Loss (major) 5 | . . . . . . . . . . . 2 . . . . 1 2 Alerts 4 | . . . . . . . . . . . 1 . . . . . 3 Overload Shots . | . . . . . . . . . . . . . . . . . . Overflow Damage 112 | . . . . . . . . . . . . 96 6 . . 10 . Projectiles 10 | . . . . . . . . . . . . . . . . 10 . Explosions 6 | . . . . . . . . . . . . . 6 . . . . Melee 96 | . . . . . . . . . . . . 96 . . . . . Knockbacks 4 | . . . . . . . . . . . . . . . . . 4 Impact . | . . . . . . . . . . . . . . . . . . Kinetic 4 | . . . . . . . . . . . . . . . . . 4 Secondary . | . . . . . . . . . . . . . . . . . . Self-Inflicted Damage 301 | . . . . . . . . . . . . . . . . . 301 Shots 14 | . . . . . . . . . . . . . . . . . 14 Rammed 3 | . . . . . . . . . . . . . . . . . 3 Targets Rammed 3 | . . . . . . . . . . . . . . . . . 3 Kicked . | . . . . . . . . . . . . . . . . . . Crushed . | . . . . . . . . . . . . . . . . . . Highest Temperature 316 | . 316 . 27 30 . 18 . 11 . . 200 . 235 178 . 143 192 Average Temperature 57 | . 132 . 6 10 . 6 . 5 . . 37 . 61 92 . 35 47 Received Heat Transfer 1982 | . 603 . 39 30 . 24 18 90 . . 216 18 216 12 . 27 689 Siege Activations 5 | . . . . . . . . . . . . . . . . . 5 Total Turns 112 | . . . . . . . . . . . . . . . . . 112 Longest Duration 41 | . . . . . . . . . . . . . . . . . 41 Robots Corrupted . | . . . . . . . . . . . . . . . . . . Combat Hostiles . | . . . . . . . . . . . . . . . . . . Parts Fried 2 | . . . . . . . . . . . . . 1 1 . . . Impact Corruptions . | . . . . . . . . . . . . . . . . . . Robots Melted 2 | . . . . . . . . . . . . . 1 1 . . . Combat Hostiles 1 | . . . . . . . . . . . . . . 1 . . . Parts Melted 13 | . 2 . . . . . . 1 . . . . 5 1 . 1 3 Heat Transferred 5706 | . 1098 . . . . . . . . . . . 1718 485 407 259 1739 Parts Sabotaged . | . . . . . . . . . . . . . . . . . . Parts Stolen . | . . . . . . . . . . . . . . . . . . Parts Stripped . | . . . . . . . . . . . . . . . . . . Power Chain Reactions 1 | . . . . . . . . . . . . . 1 . . . . Alert | -11 -10 -10 -9 -9 -7 -6 -6 -6 -6 -6 -5 -5 -5 -5 -5 -4 -3 ------- Run | Yrd Mat Min Mat Min Zio Pro Fac Low Low Dat Pro Fac Ext Cet Arc Fac Res Peak Influence 824 | . 206 56 413 140 . . 475 . . . . 80 745 824 271 202 272 Initial 369 | . . 33 21 100 . . . . . . . . 39 369 251 79 19 Average 181 | . 64 40 268 83 . . 202 . . . . 23 314 525 244 97 100 Maximum Alert Level 3 | . 1 . 2 . . . 2 . . . . . 3 3 1 1 1 Low Security (%) 66 | . 97 100 7 100 . . 50 . . . . 100 44 . . 82 92 Level 1 19 | . 2 . 85 . . . 40 . . . . . 18 7 100 17 7 Level 2 12 | . . . 6 . . . 9 . . . . . 32 89 . . . Level 3 1 | . . . . . . . . . . . . . 5 3 . . . Level 4 . | . . . . . . . . . . . . . . . . . . Level 5 . | . . . . . . . . . . . . . . . . . . High Security . | . . . . . . . . . . . . . . . . . . Max Security . | . . . . . . . . . . . . . . . . . . Squads Dispatched 21 | . 6 . 1 . . . 3 . . . . 1 1 . . 2 7 Investigation 6 | . 4 . . . . . . . . . . . . . . . 2 Extermination 5 | . . . . . . . 1 . . . . . . . . 1 3 Reinforcement 8 | . 2 . 1 . . . . . . . . 1 1 . . 1 2 Assault 1 | . . . . . . . 1 . . . . . . . . . . Garrison 1 | . . . . . . . 1 . . . . . . . . . . Intercept . | . . . . . . . . . . . . . . . . . . Searches Triggered . | . . . . . . . . . . . . . . . . . . Data Miner Redirects 1 | . . . . . . . . . . . . . . . . . 1 Construction Impeded 2 | . . . . . . . . . . . . 1 1 . . . . Haulers Reinforced . | . . . . . . . . . . . . . . . . . . Active Scanning Responses . | . . . . . . . . . . . . . . . . . . Cargo Convoy Interrupts . | . . . . . . . . . . . . . . . . . . Stealth | -11 -10 -10 -9 -9 -7 -6 -6 -6 -6 -6 -5 -5 -5 -5 -5 -4 -3 --------- Run | Yrd Mat Min Mat Min Zio Pro Fac Low Low Dat Pro Fac Ext Cet Arc Fac Res Distress Signals 15 | . 3 . 2 . . . . . . . . 1 2 2 . 1 4 Communications Jammed . | . . . . . . . . . . . . . . . . . . Distress Signals . | . . . . . . . . . . . . . . . . . . Times Spotted 181 | . 24 1 18 2 . 2 13 14 . . 9 2 30 19 8 7 32 Peak Tracking Total 10 | . 7 1 9 2 . 1 3 8 . . 5 2 7 5 7 4 10 Tactical Retreats 10 | . . . . . . . . 1 . . . 1 . . 2 . 6 Traps | -11 -10 -10 -9 -9 -7 -6 -6 -6 -6 -6 -5 -5 -5 -5 -5 -4 -3 ------- Run | Yrd Mat Min Mat Min Zio Pro Fac Low Low Dat Pro Fac Ext Cet Arc Fac Res Traps Triggered 12 | . 4 . . . . . . . . . . 2 3 . . . 3 Indirectly . | . . . . . . . . . . . . . . . . . . Trap Hack Attempts . | . . . . . . . . . . . . . . . . . . Triggered . | . . . . . . . . . . . . . . . . . . Disarmed . | . . . . . . . . . . . . . . . . . . Reprogrammed . | . . . . . . . . . . . . . . . . . . Reused . | . . . . . . . . . . . . . . . . . . Traps Extracted . | . . . . . . . . . . . . . . . . . . Installed . | . . . . . . . . . . . . . . . . . . Triggered 1 | . . . . . . . . 1 . . . . . . . . . Machines | -11 -10 -10 -9 -9 -7 -6 -6 -6 -6 -6 -5 -5 -5 -5 -5 -4 -3 ---------- Run | Yrd Mat Min Mat Min Zio Pro Fac Low Low Dat Pro Fac Ext Cet Arc Fac Res Machines Disabled 13 | . 1 . 1 . . . 5 2 . . 1 . 1 1 1 . . Max in Single Turn 1 | . 1 . 1 . . . . 1 . . 1 . . . . . . Garrison Access 2 | . . . . . . . 1 . . . . 1 . . . . . Energy Cycler 2 | . . . . . . . . . . . . . 2 . . . . Machines Repaired . | . . . . . . . . . . . . . . . . . . Machines Dismantled . | . . . . . . . . . . . . . . . . . . Machines Sabotaged . | . . . . . . . . . . . . . . . . . . Overloaded Fab Kills . | . . . . . . . . . . . . . . . . . . Hacking | -11 -10 -10 -9 -9 -7 -6 -6 -6 -6 -6 -5 -5 -5 -5 -5 -4 -3 --------- Run | Yrd Mat Min Mat Min Zio Pro Fac Low Low Dat Pro Fac Ext Cet Arc Fac Res Machines Accessed 22 | . 5 . 2 1 . 1 1 . . 4 1 1 . 1 1 1 3 Terminals 9 | . 5 . 1 . . 1 . . . . 1 . . 1 . . . Fabricators 1 | . . . . . . . 1 . . . . . . . . . . Repair Stations . | . . . . . . . . . . . . . . . . . . Recycling Units 4 | . . . 1 . . . . . . . . . . . . 1 2 Scanalyzers . | . . . . . . . . . . . . . . . . . . Garrison Access 2 | . . . . . . . . . . . . 1 . . . . 1 Total Hacks 93 | . 17 . 6 1 . 1 2 . . 28 3 1 . 1 25 3 5 Successful 66 | . 3 . 2 1 . 1 . . . 28 3 1 . 1 25 1 . Failed 27 | . 14 . 4 . . . 2 . . . . . . . . 2 5 Catastrophic 5 | . 3 . . . . . . . . . . . . . . 1 1 Database Lockouts . | . . . . . . . . . . . . . . . . . . Manual 45 | . 16 . . . . . 7 . . . . 5 8 2 . . 7 Terminals 24 | . 17 . 2 . . 1 . . . . 3 . . 1 . . . Fabricators 2 | . . . . . . . 2 . . . . . . . . . . Repair Stations . | . . . . . . . . . . . . . . . . . . Recycling Units 10 | . . . 4 . . . . . . . . . . . . 3 3 Scanalyzers . | . . . . . . . . . . . . . . . . . . Garrison Access 3 | . . . . . . . . . . . . 1 . . . . 2 Terminal Hacks 62 | . 2 . 1 1 . 1 . . . 28 3 . . 1 25 . . Record 40 | . . . . . . 1 . . . 11 3 . . . 25 . . Part Schematic 10 | . . . . . . . . . . 10 . . . . . . . Robot Schematic 4 | . . . . . . . . . . 4 . . . . . . . Prototype ID Bank 3 | . . . . . . . . . . 3 . . . . . . . Open Door 2 | . . . . 1 . . . . . . . . . 1 . . . Branch Access Points 2 | . 1 . 1 . . . . . . . . . . . . . . Terminal Index 1 | . 1 . . . . . . . . . . . . . . . . Fabricator Hacks . | . . . . . . . . . . . . . . . . . . Repair Station Hacks . | . . . . . . . . . . . . . . . . . . Recycling Unit Hacks 2 | . . . 1 . . . . . . . . . . . . 1 . Report Inventory 1 | . . . . . . . . . . . . . . . . 1 . Retrieve Components 1 | . . . 1 . . . . . . . . . . . . . . Scanalyzer . | . . . . . . . . . . . . . . . . . . Garrison Access Hacks 1 | . . . . . . . . . . . . 1 . . . . . Seal Access 1 | . . . . . . . . . . . . 1 . . . . . Unauthorized Hacks 1 | . 1 . . . . . . . . . . . . . . . . Terminals 1 | . 1 . . . . . . . . . . . . . . . . Botnet 1 | . 1 . . . . . . . . . . . . . . . . Fabricators . | . . . . . . . . . . . . . . . . . . Repair Stations . | . . . . . . . . . . . . . . . . . . Recycling Units . | . . . . . . . . . . . . . . . . . . Scanalyzers . | . . . . . . . . . . . . . . . . . . Garrison Access . | . . . . . . . . . . . . . . . . . . Data Cores Recovered . | . . . . . . . . . . . . . . . . . . Used . | . . . . . . . . . . . . . . . . . . Hacking Detections 11 | . 5 . 1 . . . 1 . . . . . . . . 1 3 Full Trace Events 3 | . 2 . . . . . . . . . . . . . . . 1 Feedback Events . | . . . . . . . . . . . . . . . . . . Feedback Blocked . | . . . . . . . . . . . . . . . . . . Robot Schematics Acquired 8 | . . . . . 4 . . . . 4 . . . . . . . Robots Built . | . . . . . . . . . . . . . . . . . . Authchips . | . . . . . . . . . . . . . . . . . . Time . | . . . . . . . . . . . . . . . . . . Total Robot Build Rating . | . . . . . . . . . . . . . . . . . . Part Schematics Acquired 25 | . . . . . 15 . . . . 10 . . . . . . . Parts Built . | . . . . . . . . . . . . . . . . . . Authchips . | . . . . . . . . . . . . . . . . . . Time . | . . . . . . . . . . . . . . . . . . Total Part Build Rating . | . . . . . . . . . . . . . . . . . . Parts Repaired . | . . . . . . . . . . . . . . . . . . Time . | . . . . . . . . . . . . . . . . . . Parts Recycled . | . . . . . . . . . . . . . . . . . . Recycled Matter . | . . . . . . . . . . . . . . . . . . Retrieved Matter . | . . . . . . . . . . . . . . . . . . Retrieved Components 9 | . . . 9 . . . . . . . . . . . . . . Parts Scanalyzed . | . . . . . . . . . . . . . . . . . . Part Schematics Acquired . | . . . . . . . . . . . . . . . . . . Parts Damaged . | . . . . . . . . . . . . . . . . . . Bothacking | -11 -10 -10 -9 -9 -7 -6 -6 -6 -6 -6 -5 -5 -5 -5 -5 -4 -3 ------------ Run | Yrd Mat Min Mat Min Zio Pro Fac Low Low Dat Pro Fac Ext Cet Arc Fac Res Used RIF Installer . | . . . . . . . . . . . . . . . . . . Robots Hacked . | . . . . . . . . . . . . . . . . . . Non-combat . | . . . . . . . . . . . . . . . . . . Combat . | . . . . . . . . . . . . . . . . . . Robot Hacks Applied . | . . . . . . . . . . . . . . . . . . Relay Couplers Released 3 | . . . . . . . 3 . . . . . . . . . . Programmers 3 | . . . . . . . 3 . . . . . . . . . . Fabnet Peak Effective % . | . . . . . . . . . . . . . . . . . . Robots Rewired 28 | . . . . . . . . 2 . . . . 26 . . . . Allies Hacked . | . . . . . . . . . . . . . . . . . . Hacks Repelled . | . . . . . . . . . . . . . . . . . . Allies | -11 -10 -10 -9 -9 -7 -6 -6 -6 -6 -6 -5 -5 -5 -5 -5 -4 -3 -------- Run | Yrd Mat Min Mat Min Zio Pro Fac Low Low Dat Pro Fac Ext Cet Arc Fac Res Total Allies 49 | . . 3 . . 4 . 2 2 . . 1 4 31 . . . 2 Largest Group 18 | . . 3 3 . 4 4 5 3 1 1 1 4 18 18 3 . 2 Highest-Rated Group 753 | . . 40 40 . 158 158 288 123 24 24 96 282 753 718 214 . 162 Highest-Rated Ally 159 | . . 16 16 . 41 41 85 65 24 24 96 96 159 152 152 . 81 Zionite Dispatches 6 | . . . . . . . 1 . . . . 2 2 . . . 1 Heavy 1 | . . . . . . . 1 . . . . . . . . . . Light 2 | . . . . . . . . . . . . 1 1 . . . . Hacker 1 | . . . . . . . . . . . . . . . . . 1 Explosive Resupply 1 | . . . . . . . . . . . . . 1 . . . . Infowar Resupply 1 | . . . . . . . . . . . . 1 . . . . . Total Orders 9 | . . . . . . . 2 2 . . . 1 4 . . . . STAY 3 | . . . . . . . . 1 . . . . 2 . . . . FOLLOW 2 | . . . . . . . . 1 . . . . 1 . . . . DROP 2 | . . . . . . . . . . . . 1 1 . . . . RETURN 2 | . . . . . . . 2 . . . . . . . . . . Ally Attacks 469 | . . 3 23 . . 29 36 35 . . 8 10 212 108 3 . 2 Total Damage 11707 | . . 38 211 . . 732 1889 940 . . 210 285 4590 2749 33 . 30 Kills 81 | . . 1 6 . . 2 13 8 . . 2 2 29 18 . . . Allies Corrupted 1 | . . . . . . . . . . . 1 . . . . . . Allies Melted . | . . . . . . . . . . . . . . . . . . Intel | -11 -10 -10 -9 -9 -7 -6 -6 -6 -6 -6 -5 -5 -5 -5 -5 -4 -3 ------- Run | Yrd Mat Min Mat Min Zio Pro Fac Low Low Dat Pro Fac Ext Cet Arc Fac Res Robot Analysis Total . | . . . . . . . . . . . . . . . . . . Derelict Logs Recovered 7 | . . 1 . 1 3 1 . . . . 1 . . . . . . Drone Launches 3 | . . . . . . . 3 . . . . . . . . . . Drone Recoveries 2 | . . . . . . . 2 . . . . . . . . . . Decoded 0b10 Intel 61 | . . . . . . . 52 . . . . 7 2 . . . . Emergency Access 4 | . . . . . . . 4 . . . . . . . . . . Items 40 | . . . . . . . 40 . . . . . . . . . . Machines 6 | . . . . . . . 6 . . . . . . . . . . Garrisons 2 | . . . . . . . . . . . . 2 . . . . . Patrols 9 | . . . . . . . 2 . . . . 5 2 . . . . Zionite Intel Received 2 | . . . . . . . 1 . . . . . . . . . 1 Branch Access 2 | . . . . . . . 1 . . . . . . . . . 1 Exploration | -11 -10 -10 -9 -9 -7 -6 -6 -6 -6 -6 -5 -5 -5 -5 -5 -4 -3 ------------- Run | Yrd Mat Min Mat Min Zio Pro Fac Low Low Dat Pro Fac Ext Cet Arc Fac Res Turns Passed 14098 | . 1336 276 734 589 2376 497 614 929 422 166 1112 325 1642 534 199 581 1766 Spaces Moved 6095 | 1 522 143 284 288 1239 256 291 375 220 88 280 270 557 210 86 288 697 Core 203 | . . . . . . . . . . . 158 1 2 . . . 42 Treads 1551 | . 11 . . . . . . . . . . . 526 210 86 288 430 Legs 3816 | 1 511 143 284 288 1239 256 291 375 220 88 119 . 1 . . . . Wheels . | . . . . . . . . . . . . . . . . . . Hover 300 | . . . . . . . . . . . 3 269 28 . . . . Flight 225 | . . . . . . . . . . . . . . . . . 225 Fastest Speed 34 | 120 120 190 190 190 190 190 190 190 190 190 180 60 120 170 170 160 34 Average Speed 192 | 120 193 190 190 190 190 190 190 190 190 190 365 89 201 241 211 166 159 Slowest Speed 500 | 120 260 190 190 190 190 190 190 190 190 190 500 180 500 250 250 250 305 Overloaded Moves . | . . . . . . . . . . . . . . . . . . Propulsion Burnouts . | . . . . . . . . . . . . . . . . . . Robots Hopped 7 | . . . . . . . . . . . . . . . . . 7 Cave-ins Triggered 21 | . . . . . . . . . . . . . . . . 1 20 Exploration Rate (%) 47 | 2 76 46 24 54 89 46 12 59 43 70 46 8 84 66 95 11 17 Regions Visited 17 Branch Regions 11 Pre-discovered Areas 3 | . . 1 . . 1 . . . . 1 . . . . . . . Known Exits Taken 8 | . 1 . 1 . . . 1 . . . . 1 1 1 1 1 . Unknown Exits Taken 9 | 1 . 1 . 1 1 1 . 1 1 1 1 . . . . . . Scrap Searched 12 | . . 1 . . 4 4 . 1 1 . 1 . . . . . . Spaces Dug 59 | . . . . . . . 1 . . . . 3 4 . . 13 38 Terrain Destroyed 226 | . . . . . . . 1 89 . . . 3 12 3 . 28 90 Melee 30 | . . . . . . . 1 . . . . 3 . . . 1 25 Projectile 58 | . . . . . . . . 1 . . . . 12 3 . 27 15 AOE 138 | . . . . . . . . 88 . . . . . . . . 50 Terrain Rammed 2 | . . . . . . . . . . . . . . . . . 2 Walls Destroyed . | . . . . . . . . . . . . . . . . . . Machines Disabled . | . . . . . . . . . . . . . . . . . . Actions | -11 -10 -10 -9 -9 -7 -6 -6 -6 -6 -6 -5 -5 -5 -5 -5 -4 -3 --------- Run | Yrd Mat Min Mat Min Zio Pro Fac Low Low Dat Pro Fac Ext Cet Arc Fac Res Total 7928 | . 744 148 381 319 1263 261 329 569 222 87 337 340 1011 227 96 359 1235 Wait 844 | . 118 4 22 8 . 1 9 157 1 . 20 34 39 9 . 26 396 Move 6061 | . 521 142 283 287 1238 255 290 374 219 87 279 269 556 209 85 286 681 Hop 7 | . . . . . . . . . . . . . . . . . 7 Pick Up 49 | . 16 1 4 7 9 1 . . . . 5 . 5 . . . 1 Fast Attach 85 | . 9 . 4 1 1 . 3 1 . . 4 16 19 1 . 12 14 Attach 30 | . 4 . 1 1 1 . 8 2 . . 5 2 1 . . 1 4 Detach 8 | . 1 . . . . . 2 . . . . . 3 . . 1 1 Swap 40 | . 5 . 8 . 3 . 5 5 . . 3 . 7 . . 1 3 Drop 103 | . 14 1 13 7 10 1 2 1 . . . 9 23 1 . 5 16 Fire 287 | . 56 . 46 8 . 3 9 13 2 . 20 . 31 7 11 25 56 Melee 54 | . . . . . 1 . 1 . . . 1 10 13 . . 1 27 Ram 5 | . . . . . . . . . . . . . . . . . 5 Kick . | . . . . . . . . . . . . . . . . . . Crush . | . . . . . . . . . . . . . . . . . . Escape Stasis 29 | . . . . . . . . . . . . . 4 . . 1 24 Rewire 326 | . . . . . . . . 16 . . . . 310 . . . . Trap . | . . . . . . . . . . . . . . . . . . Miscellaneous . | . . . . . . . . . . . . . . . . . . Route ------- -11/Scrapyard -10/Materials (discovered 3 exits: *Mat x2 / *Min) -10/Mines -9/Materials (discovered 4 exits: *Min x2 / Sto x2) -9/Mines (discovered 2 exits: [*Mat] / [*Zio]) -7/Zion -6/Proximity Caves -6/Factory (discovered 2 exits: *Low x2) -6/Lower Caves -6/Lower Caves -6/Data Miner -5/Proximity Caves -5/Factory (discovered 3 exits: Upp x2 / *Ext) -5/Extension (discovered 2 exits: *Fac / *Cet) -5/Cetus (discovered 2 exits: *Fac / *Arc) -5/Archives (discovered 2 exits: *Fac / *Hub) -4/Factory (discovered 2 exits: *Res / Upp) -3/Research (discovered 2 exits: Qua x2) History --------- Turn | Location | Event 1 | -11/Scrapyard | Discovered new exit (range 0) 1 | -11/Scrapyard | Entered Materials 132 | -10/Materials | Core integrity fell below 50% 149 | -10/Materials | Lost 4 parts (1p1n1u1w) 402 | -10/Materials | Discovered new exit (range 3) 583 | -10/Materials | Build established: Mutant 588 | -10/Materials | Core integrity fell below 20% 741 | -10/Materials | Discovered new exit (range 5) 1279 | -10/Materials | Identified exit to Mines 1337 | -10/Materials | Entered Mines 1380 | -10/Mines | Assisted by bots powering up and referring to "LRC-V3" 1430 | -10/Mines | Learned location of Recycling (-9) 1492 | -10/Mines | Assembled infested the area 1497 | -10/Mines | Assisted by a Guerilla fighting off Assembled 1510 | -10/Mines | A weapon hastily lodged in a ceiling crevice suddenly fell to the ground 1595 | -10/Mines | Discovered new exit (range 8) 1613 | -10/Mines | Entered Materials 1613 | -9/Materials | Accompanied by 3 allies 1613 | -9/Materials | Evolved 2 slots: Utility x1, Weapon x1 1706 | -9/Materials | Identified exit to Mines 1706 | -9/Materials | Identified exit to Storage 1709 | -9/Materials | Lost 3 allies 1922 | -9/Materials | Build established: Gunner 2347 | -9/Materials | Entered Mines 2361 | -9/Mines | Met a Derelict bent on vengeance 2484 | -9/Mines | Found a damaged Exp. Sensor Array with a note attached 2488 | -9/Mines | Found Prototype Device 2532 | -9/Mines | Met a Derelict who couldn't figure out how to use a Trap Extractor 2611 | -9/Mines | Learned Materials trap positions 2780 | -9/Mines | Discovered new exit (range 9) 2923 | -9/Mines | A Derelict revealed a hidden shortcut to a safe place 2936 | -9/Mines | Entered Zion 2980 | -7/Zion | Given the Hacking Drone Bay 3136 | -7/Zion | Learned Factory garrison access intel 3239 | -7/Zion | Visited the Megawrench Repair Shop 3258 | -7/Zion | Discovered new exit (range 11) 3497 | -7/Zion | Build established: Mutant 3564 | -7/Zion | Learned location of Data Miner (-6) 3824 | -7/Zion | Learned Factory trap positions 3839 | -7/Zion | Learned Factory security intel 4083 | -7/Zion | Acquired unknown access codes intercepted by a Zionite 4433 | -7/Zion | Found Prototype Device 4541 | -7/Zion | Identified Exp. Sensor Array 4627 | -7/Zion | Megawrench repaired 6 parts 4771 | -7/Zion | Build established: Gunner 4825 | -7/Zion | Found GAL Module 4995 | -7/Zion | Imprinted 4997 | -7/Zion | Declared Zion's savior 5312 | -7/Zion | Entered Proximity Caves 5312 | -6/Proximity Caves | Accompanied by 4 allies 5314 | -6/Proximity Caves | Attracted the attention of an 0b10 checkpoint 5393 | -6/Proximity Caves | Spotted B-75 Beast 5418 | -6/Proximity Caves | Allies destroyed B-75 Beast 5798 | -6/Proximity Caves | Discovered new exit (range 4) 5809 | -6/Proximity Caves | Entered Factory 5809 | -6/Factory | Accompanied by 3 allies 5809 | -6/Factory | Evolved 6 slots: Utility x6 5810 | -6/Factory | Loaded intel: 120 trap records 5812 | -6/Factory | Loaded intel: 4 garrison access locations 5831 | -6/Factory | Identified Hacking Drone Bay 5909 | -6/Factory | Zion Heavy squad teleported in 5947 | -6/Factory | Retrieved Zion intel report: Branch Access 5947 | -6/Factory | Identified exit to Lower Caves 6117 | -6/Factory | Garrison activated, responded to threat 6423 | -6/Factory | Entered Lower Caves 6423 | -6/Lower Caves | Accompanied by 1 ally 6434 | -6/Lower Caves | Attracted the attention of an 0b10 outpost 6566 | -6/Lower Caves | Build established: Scavenger-Gunner 6572 | -6/Lower Caves | Attracted the attention of an 0b10 checkpoint 6670 | -6/Lower Caves | Encountered a Warlord checkpoint 7295 | -6/Lower Caves | Discovered new exit (range 16) 7352 | -6/Lower Caves | Entered another Lower Caves area 7352 | -6/Lower Caves | Accompanied by 1 ally 7485 | -6/Lower Caves | Encountered a Warlord checkpoint 7748 | -6/Lower Caves | Discovered new exit (range 14) 7774 | -6/Lower Caves | Entered Data Miner 7774 | -6/Data Miner | Accompanied by 1 ally 7774 | -6/Data Miner | Discovered new exit (range 6) 7811 | -6/Data Miner | Met Data Miner 7850 | -6/Data Miner | Learned location of Section 7 (-3) 7850 | -6/Data Miner | Acquired the access code to Warlord's prototype stash 7890 | -6/Data Miner | Received God Mode back door access code from Data Miner 7940 | -6/Data Miner | Entered Proximity Caves 7940 | -5/Proximity Caves | Accompanied by 1 ally 8003 | -5/Proximity Caves | Learned Factory emergency access door positions 8157 | -5/Proximity Caves | Lost 5 parts (1p3u1w) 8214 | -5/Proximity Caves | Attracted the attention of an 0b10 base 8243 | -5/Proximity Caves | Escorted by Enhanced Grunt 8278 | -5/Proximity Caves | Lost 10 parts (1p3n3u3w) 8315 | -5/Proximity Caves | Learned Armory terminal intel 8535 | -5/Proximity Caves | Build established: Mutant 8939 | -5/Proximity Caves | Discovered new exit (range 15) 9052 | -5/Proximity Caves | Entered Factory 9052 | -5/Factory | Accompanied by 1 ally 9052 | -5/Factory | Evolved 2 slots: Utility x2 9053 | -5/Factory | Identified exit to Upper Caves 9155 | -5/Factory | Zion Infowar Resupply teleported in 9256 | -5/Factory | Zion Light squad teleported in 9311 | -5/Factory | Discovered new exit (range 22) 9375 | -5/Factory | Identified exit to Extension 9377 | -5/Factory | Entered Extension 9377 | -5/Extension | Accompanied by 4 allies 9433 | -5/Extension | Found Prototype Protection 9433 | -5/Extension | Identified Zio. Weapon Casing 9462 | -5/Extension | Lost 4 allies 9488 | -5/Extension | Lost 3 parts (1n2u) 9702 | -5/Extension | Zion Explosive Resupply teleported in 9708 | -5/Extension | Found Prototype Launcher 9708 | -5/Extension | Identified Scatter Rocket Array 9870 | -5/Extension | Rescued A7 9900 | -5/Extension | Build established: Scavenger-Skirmisher 10128 | -5/Extension | Spotted B-75 Beast 10144 | -5/Extension | Spotted B-75 Beast 10165 | -5/Extension | Allies destroyed B-75 Beast 10173 | -5/Extension | Allies destroyed B-75 Beast 10298 | -5/Extension | Zion Light squad teleported in 10310 | -5/Extension | Energy Cycler disabled 10311 | -5/Extension | Rescued a captive Derelict 10313 | -5/Extension | Rescued a captive Derelict 10895 | -5/Extension | Build established: Commander-Tank 10917 | -5/Extension | Lost 3 allies 10927 | -5/Extension | Terminal network hard line cut 10971 | -5/Extension | Discovered new exit (range 10) 10974 | -5/Extension | Discovered new exit (range 6) 10984 | -5/Extension | Identified exit to Cetus 11019 | -5/Extension | Entered Cetus 11019 | -5/Cetus | Accompanied by 18 allies (A7) 11024 | -5/Cetus | Acquired a Cetus Manufacturing Module code from A7 11025 | -5/Cetus | Spotted Cetus Guard 11025 | -5/Cetus | Spotted Cetus Guard 11030 | -5/Cetus | Spotted Cetus Guard 11030 | -5/Cetus | Spotted Cetus Guard 11046 | -5/Cetus | Allies destroyed Cetus Guard 11053 | -5/Cetus | Destroyed Cetus Guard 11057 | -5/Cetus | Allies destroyed Cetus Guard 11058 | -5/Cetus | Allies destroyed Cetus Guard 11059 | -5/Cetus | Cetus Manufacturing Module disabled 11082 | -5/Cetus | Lost 7 allies 11141 | -5/Cetus | Failed to start Cetus Manufacturing Module 11244 | -5/Cetus | Discovered new exit (range 16) 11292 | -5/Cetus | Spotted Cetus Guard 11292 | -5/Cetus | Spotted Cetus Guard 11295 | -5/Cetus | Spotted Cetus Guard 11296 | -5/Cetus | Spotted Cetus Guard 11297 | -5/Cetus | Destroyed Cetus Guard 11299 | -5/Cetus | Allies destroyed Cetus Guard 11305 | -5/Cetus | Destroyed Cetus Guard 11306 | -5/Cetus | Allies destroyed Cetus Guard 11319 | -5/Cetus | Discovered new exit (range 15) 11328 | -5/Cetus | Lost 4 allies 11332 | -5/Cetus | Scared off Revision 17 11551 | -5/Cetus | Identified exit to Archives 11553 | -5/Cetus | Entered Archives 11553 | -5/Archives | Accompanied by 3 allies (A7) 11561 | -5/Archives | Build established: Messiah-Tank 11612 | -5/Archives | Met Zhirov 11618 | -5/Archives | Reinforcements dispatched to Archives 11642 | -5/Archives | Read partially decrypted archive contents 11655 | -5/Archives | Discovered new exit (range 14) 11663 | -5/Archives | Reinforcements dispatched to Archives 11665 | -5/Archives | Zhirov warped through subspace 11683 | -5/Archives | Zhirov detonated Archives 11689 | -5/Archives | Identified exit to Hub_04(d) 11714 | -5/Archives | Lost 4 parts (3u1w) 11726 | -5/Archives | Discovered new exit (range 15) 11750 | -5/Archives | Identified exit to Factory 11752 | -5/Archives | Entered Factory 11752 | -4/Factory | Evolved 2 slots: Utility x2 11753 | -4/Factory | Identified exit to Research 11753 | -4/Factory | Identified exit to Upper Caves 12217 | -4/Factory | Build established: Messiah-Gunner 12258 | -4/Factory | Crushed by falling debris 12259 | -4/Factory | System corruption reached 10% 12289 | -4/Factory | Lost 3 parts (3u) 12333 | -4/Factory | Entered Research 12333 | -3/Research | Evolved 2 slots: Utility x2 13261 | -3/Research | Retrieved Zion intel report: Branch Access 13261 | -3/Research | Identified exit to Quarantine 13288 | -3/Research | Zion Hacker squad teleported in 13556 | -3/Research | Terminal network hard line cut 13621 | -3/Research | Destroyed 8 combat bots 13661 | -3/Research | Lost 12 parts (1n7u4w) 13763 | -3/Research | Incoming investigation squad redirected 13772 | -3/Research | Spotted B-86 Titan 13793 | -3/Research | Crushed by falling debris 13798 | -3/Research | Crushed by falling debris 13812 | -3/Research | Crushed by falling debris 13826 | -3/Research | Crushed by falling debris 13827 | -3/Research | System corruption reached 10% 13841 | -3/Research | Crushed by falling debris 13865 | -3/Research | Crushed by falling debris 13872 | -3/Research | Lost 7 parts (1p2n3u1w) 13885 | -3/Research | Build established: Mutant 13894 | -3/Research | Crushed by falling debris 13960 | -3/Research | Crushed by falling debris 13960 | -3/Research | Core integrity fell below 50% 13962 | -3/Research | Crushed by falling debris 13970 | -3/Research | Crushed by falling debris 13972 | -3/Research | Crushed by falling debris 13987 | -3/Research | Crushed by falling debris 14003 | -3/Research | Crushed by falling debris 14019 | -3/Research | Crushed by falling debris 14042 | -3/Research | Crushed by falling debris 14042 | -3/Research | Core integrity fell below 20% 14046 | -3/Research | Crushed by falling debris 14071 | -3/Research | Crushed by falling debris 14082 | -3/Research | Crushed by falling debris 14097 | -3/Research | Crushed by falling debris 14100 | -3/Research | Crushed by falling debris 14100 | -3/Research | Smashed by cave-in Last Messages --------------- 14003_ Crushed by falling debris. 14015_ System corrupted: IFF burst signal emitted. 14019_ The unstable cave ceiling collapses. 14019_ Crushed by falling debris. 14031_ 05:BAYRYHTT6WLQB|